Cogmind - Beta 14 @@@ ROGUE MODE // 2025.03.27 @ 21:44:54 Player: D-3M0G Result: Self-destructed Performance ------------- Evolutions (1) 500 Regions Visited (2) 400 Robots Destroyed (7) 35 Value Destroyed (222) 222 Prototype IDs (3) 60 Alien Tech Used (0) 0 Bonus (0) 0 TOTAL SCORE: 1217 Bonus ------- None Cogmind --------- Core Integrity 326/400 Matter 300/300 Energy 100/100 System Corruption 0% Temperature Cool (0) Movement Core (300) Ox5 Location -9/Materials Parts ------- > --- POWER (1) -------- (None) > --- PROPULSION (3) --- Aluminum Leg > --- UTILITY (3) ------ Medium Storage Unit Power Shielding > --- WEAPON (2) ------- Improved Medium Laser Heavy Assault Rifle > --- INVENTORY (10) --- Light Ion Engine Light Treads Light Treads Light Treads Wheel Huge Storage Unit ECM Suite Shotgun Peak State ------------ > --- POWER ------------ (None) > --- PROPULSION ------- Aluminum Leg Aluminum Leg Wheel > --- UTILITY ---------- Medium Storage Unit Power Shielding > --- WEAPON ----------- Improved Medium Laser Heavy Assault Rifle > --- INVENTORY -------- Light Ion Engine Light Treads Light Treads Wheel Huge Storage Unit ECM Suite Shotgun [Rating: 10] Favorites ----------- Power Ion Engine Engine Ion Engine Propulsion Aluminum Leg Leg Aluminum Leg Wheel Wheel Utility Medium Storage Unit Device ECM Suite Storage Medium Storage Unit Protection Power Shielding Weapon Assault Rifle Energy Gun Improved Medium Laser Ballistic Gun Assault Rifle Build | -11 -10 -9 ------- Run | Yrd Mat Mat Slots Evolved 2 | . . 2 Power . | . . . Propulsion 1 | . . 1 Utility 1 | . . 1 Weapon . | . . . Parts Attached 10 | . 6 4 Power 1 | . 1 . Engine 1 | . 1 . Core . | . . . Reactor . | . . . Propulsion 1 | . . 1 Treads . | . . . Leg . | . . . Wheel 1 | . . 1 Hover . | . . . Flight . | . . . Utility 4 | . 4 . Device 1 | . 1 . Storage 2 | . 2 . Processor . | . . . Hackware . | . . . Protection 1 | . 1 . Artifact . | . . . Weapon 4 | . 1 3 Energy Gun 1 | . . 1 Energy Cannon . | . . . Ballistic Gun 3 | . 1 2 Ballistic Cannon . | . . . Launcher . | . . . Special Weapon . | . . . Impact Weapon . | . . . Slashing Weapon . | . . . Piercing Weapon . | . . . Special Melee Weapon . | . . . Unidentified Prototypes 1 | . . 1 Parts Lost 3 | . . 3 Power 1 | . . 1 Propulsion 2 | . . 2 Utility . | . . . Weapon . | . . . Highest Loss Streak 2 | . . 2 To Critical Strikes . | . . . Average Slot Usage (%) 84 | . 86 78 Engine 11 | . 13 4 Leg 25 | . 28 20 Wheel 2 | . . 9 Device 1 | . 1 . Storage 13 | . 14 11 Protection 3 | . . 11 Energy Gun 1 | . . 5 Ballistic Gun 24 | . 27 15 Peak Build Rating 10 | . 7 10 Average Rating 7 | . 6 9 On Entrance 6 | 6 6 7 Naked Turns . | . . . Heaviest Build 21 | 11 20 21 Greatest Support 20 | 20 20 20 Greatest Overweight (x) 5 | . . 5 Average Overweight (x) . | . . 1 Largest Inventory Capacity 10 | . 10 10 Average Capacity 9 | . 9 10 Most Carried 10 | . 10 10 Average Carried 7 | . 7 7 Final Capacity 10 | 8 10 10 Final Carried 9 | 6 9 8 Class Distribution -------------------- 100% | Mutant Dominant Class ---------------- Mutant | -10/Materials Mutant | -9/Materials Resources | -11 -10 -9 ----------- Run | Yrd Mat Mat Matter Collected 389 | 200 110 79 Remotely . | . . . Salvage Created 282 | . 175 107 Parts 14 | . 9 5 Haulers Intercepted . | . . . Recyclers Shooed 2 | . 2 . Parts Field Recycled . | . . . Retrieved Matter . | . . . Parts Self-Destructed . | . . . Prevented . | . . . Kills | -11 -10 -9 ------- Run | Yrd Mat Mat Combat Hostiles Destroyed 5 | . 3 2 Guns 5 | . 3 2 Classes Destroyed 4 | . 3 1 Worker 1 | . 1 . Operator 1 | . 1 . Grunt 3 | . 3 . Sentry 2 | . . 2 Best Kill Streak 2 | . 2 1 Combat Bots Only 2 | . 2 1 Max Kills in Single Turn 1 | . 1 1 Gunslinging . | . . . Exploded . | . . . Melee . | . . . Uniques/NPCs Destroyed . | . . . Combat | -11 -10 -9 -------- Run | Yrd Mat Mat Hostile Shots Fired 57 | . 28 29 Missed 13 | . 5 8 Damage Taken 581 | . 284 297 Core 131 | . 57 74 Absorbed by Shields . | . . . Redirected to Shielding 12 | . 3 9 Core Remaining (%) 88 | 100 77 . Volleys Fired 23 | . 15 8 Largest 2 | . 2 2 Hottest 79 | . 40 79 Shots Fired 46 | . 30 16 Gun 46 | . 30 16 Cannon . | . . . Launcher . | . . . Special . | . . . Kinetic 43 | . 30 13 Thermal 3 | . . 3 Explosive . | . . . Electromagnetic . | . . . Robot Hit Streak 13 | . 5 13 Robot Miss Streak 3 | . 3 1 Penetration Max . | . . . Secondary Targets . | . . . Shots Hit Robots 31 | . 16 15 Core Hits 13 | . 9 4 Critical Kills . | . . . Critical Parts Destroyed . | . . . Critical Strikes . | . . . Melee Attacks . | . . . Impact . | . . . Slashing . | . . . Piercing . | . . . Sneak Attacks . | . . . Combat Hostiles . | . . . Follow-up Attacks . | . . . Damage Inflicted 425 | . 191 234 Guns 410 | . 176 234 Cannons . | . . . Explosions . | . . . Melee . | . . . Ramming 15 | . 15 . Kinetic 375 | . 176 199 Thermal 35 | . . 35 Explosive . | . . . Electromagnetic . | . . . Impact . | . . . Slashing . | . . . Piercing . | . . . Highest Corruption . | . . . Average Corruption . | . . . Corruption Purged . | . . . Corruption Blocked . | . . . Overload Shots . | . . . Overflow Damage . | . . . Projectiles . | . . . Explosions . | . . . Melee . | . . . Knockbacks . | . . . Impact . | . . . Kinetic . | . . . Secondary . | . . . Self-Inflicted Damage . | . . . Shots . | . . . Rammed . | . . . Targets Rammed 6 | . 6 . Kicked 6 | . 6 . Crushed . | . . . Highest Temperature 10 | . 9 10 Average Temperature 6 | . 6 5 Received Heat Transfer 279 | . 144 135 Siege Activations . | . . . Robots Corrupted . | . . . Combat Hostiles . | . . . Parts Fried . | . . . Impact Corruptions . | . . . Robots Melted . | . . . Combat Hostiles . | . . . Parts Melted . | . . . Heat Transferred 74 | . . 74 Parts Sabotaged . | . . . Parts Stolen . | . . . Parts Stripped . | . . . Power Chain Reactions . | . . . Alert | -11 -10 -9 ------- Run | Yrd Mat Mat Peak Influence 96 | . 96 90 Initial 5 | . . 5 Average 31 | . 27 42 Maximum Alert Level . | . . . Low Security (%) 100 | . 100 100 Level 1 . | . . . Level 2 . | . . . Level 3 . | . . . Level 4 . | . . . Level 5 . | . . . High Security . | . . . Max Security . | . . . Squads Dispatched 3 | . 2 1 Investigation . | . . . Extermination . | . . . Reinforcement 3 | . 2 1 Assault . | . . . Garrison . | . . . Intercept . | . . . Searches Triggered . | . . . Construction Impeded . | . . . Haulers Reinforced . | . . . Active Scanning Responses . | . . . Cargo Convoy Interrupts . | . . . Stealth | -11 -10 -9 --------- Run | Yrd Mat Mat Distress Signals . | . . . Communications Jammed . | . . . Distress Signals . | . . . Times Spotted 15 | . 8 7 Peak Tracking Total 6 | . 3 6 Tactical Retreats 1 | . . 1 Traps | -11 -10 -9 ------- Run | Yrd Mat Mat Traps Triggered 2 | . 2 . Indirectly . | . . . Trap Hack Attempts . | . . . Triggered . | . . . Disarmed . | . . . Reprogrammed . | . . . Reused . | . . . Traps Extracted . | . . . Installed . | . . . Triggered . | . . . Machines | -11 -10 -9 ---------- Run | Yrd Mat Mat Machines Disabled . | . . . Max in Single Turn . | . . . Machines Repaired . | . . . Machines Dismantled . | . . . Machines Sabotaged . | . . . Overloaded Fab Kills . | . . . Hacking | -11 -10 -9 --------- Run | Yrd Mat Mat Machines Accessed 3 | . 2 1 Terminals 3 | . 2 1 Fabricators . | . . . Repair Stations . | . . . Recycling Units . | . . . Scanalyzers . | . . . Garrison Access . | . . . Total Hacks 6 | . 4 2 Successful 4 | . 3 1 Failed 2 | . 1 1 Catastrophic . | . . . Database Lockouts . | . . . Manual 3 | . 3 . Terminals 6 | . 4 2 Fabricators . | . . . Repair Stations . | . . . Recycling Units . | . . . Scanalyzers . | . . . Garrison Access . | . . . Terminal Hacks 3 | . 2 1 Record 2 | . 2 . Prototype ID Bank 1 | . . 1 Fabricator Hacks . | . . . Repair Station Hacks . | . . . Recycling Unit Hacks . | . . . Scanalyzer . | . . . Garrison Access Hacks . | . . . Unauthorized Hacks 1 | . 1 . Terminals 1 | . 1 . Operators 1 | . 1 . Fabricators . | . . . Repair Stations . | . . . Recycling Units . | . . . Scanalyzers . | . . . Garrison Access . | . . . Data Cores Recovered . | . . . Used . | . . . Hacking Detections 2 | . 1 1 Full Trace Events 1 | . 1 . Feedback Events . | . . . Feedback Blocked . | . . . Robot Schematics Acquired . | . . . Robots Built . | . . . Authchips . | . . . Time . | . . . Total Robot Build Rating . | . . . Part Schematics Acquired . | . . . Parts Built . | . . . Authchips . | . . . Time . | . . . Total Part Build Rating . | . . . Parts Repaired . | . . . Time . | . . . Parts Recycled . | . . . Recycled Matter . | . . . Retrieved Matter . | . . . Retrieved Components . | . . . Parts Scanalyzed . | . . . Part Schematics Acquired . | . . . Parts Damaged . | . . . Bothacking | -11 -10 -9 ------------ Run | Yrd Mat Mat Used RIF Installer . | . . . Robots Hacked . | . . . Non-combat . | . . . Combat . | . . . Robot Hacks Applied . | . . . Relay Couplers Released . | . . . Fabnet Peak Effective % . | . . . Robots Rewired . | . . . Allies Hacked . | . . . Hacks Repelled . | . . . Allies | -11 -10 -9 -------- Run | Yrd Mat Mat Total Allies . | . . . Largest Group . | . . . Highest-Rated Group . | . . . Highest-Rated Ally . | . . . Total Orders . | . . . Ally Attacks . | . . . Total Damage . | . . . Kills . | . . . Allies Corrupted . | . . . Allies Melted . | . . . Intel | -11 -10 -9 ------- Run | Yrd Mat Mat Robot Analysis Total . | . . . Derelict Logs Recovered . | . . . Drone Launches . | . . . Drone Recoveries . | . . . Exploration | -11 -10 -9 ------------- Run | Yrd Mat Mat Turns Passed 638 | . 454 184 Spaces Moved 448 | 1 313 134 Core 1 | . . 1 Treads . | . . . Legs 324 | 1 313 10 Wheels 123 | . . 123 Hover . | . . . Flight . | . . . Fastest Speed 95 | 120 120 95 Average Speed 114 | 120 120 102 Slowest Speed 300 | 120 120 300 Overloaded Moves . | . . . Propulsion Burnouts . | . . . Robots Hopped . | . . . Cave-ins Triggered . | . . . Exploration Rate (%) 20 | 2 45 15 Regions Visited 2 Branch Regions . Pre-discovered Areas . | . . . Known Exits Taken . | . . . Unknown Exits Taken 2 | 1 1 . Scrap Searched . | . . . Spaces Dug . | . . . Terrain Destroyed . | . . . Melee . | . . . Projectile . | . . . AOE . | . . . Terrain Rammed . | . . . Walls Destroyed . | . . . Machines Disabled . | . . . Actions | -11 -10 -9 --------- Run | Yrd Mat Mat Total 528 | . 362 166 Wait 28 | . 16 12 Move 446 | . 312 134 Hop . | . . . Pick Up 10 | . 6 4 Fast Attach . | . . . Attach 6 | . 4 2 Detach 1 | . 1 . Swap 4 | . 2 2 Drop 4 | . . 4 Fire 23 | . 15 8 Melee . | . . . Ram . | . . . Kick 6 | . 6 . Crush . | . . . Escape Stasis . | . . . Rewire . | . . . Trap . | . . . Miscellaneous . | . . . Route ------- -11/Scrapyard -10/Materials (discovered 2 exits: *Mat / [*Min]) -9/Materials History --------- Turn | Location | Event 1 | -11/Scrapyard | Discovered new exit (range 0) 1 | -11/Scrapyard | Entered Materials 175 | -10/Materials | Discovered new exit (range 16) 309 | -10/Materials | Build established: Mutant 411 | -10/Materials | Discovered new exit (range 16) 455 | -10/Materials | Entered another Materials area 455 | -9/Materials | Evolved 2 slots: Propulsion x1, Utility x1 639 | -9/Materials | Self-destructed Last Messages --------------- >>Prototypes Downloading prototype IDs... Imp. Flight Unit Adv. Beam Cannon 00597_ Connecting with Terminal... 00606_ C-30 ARC bursts open, deploying its payload. 00606_ G-47 Trooper unfolds itself. 00606_ G-34 Mercenary unfolds itself. 00610_ Aluminum Leg destroyed. 00612_ O-16 Technician: "IFF HANDSHAKE FAILED. SECURING TERMINAL." 00613_ Critical hit (Burn: +37). 00619_ Connecting with Terminal... 00620_ ALERT: Hostiles spotted, dispatching reinforcements to Terminal M007. 00621_ K-01 Serf cleans the Processing Tank. 00625_ K-01 Serf collects debris. 00636_ Wheel destroyed. 00638_ K-01 Serf cleans the Processing Tank. Map ----- +----------------------------------------------------+ | ??????????????????????????????????? | | ??????????????????????????????????? | | ??????????????????????????????????? | | ??????????????????????????????????? | | ??????????????????????????????????? | | ??????????????????????????????????? | | ??????????????????????????????????? | | ??????????????????????????????????? | | ??????????????????????????????????? | | ??????????????????????????????????? | | ????????????????????????########### | | ????????????????????????# # | | ???????????# ???????????# "T" # | | ???????????# ??????????# # | | ???????????# ???#+????# # | | ?????????###" ##?# ????# # | | ?????????# "%" ## ##### # | | ?????????# " + """"" # | | ?????????# # """"" # | | ?????????# + """"" # | | ?????????# # k # | | ?????????# # """"" # | | ?????????# ## #Y"""""g! # | | ?????????####+##??# #g""""" # | | ??????????????????+ # g # | | ??????????????????##### #@ # | | ??????????????????????# # # | | ??????????????????????# # ######### | | ??????????????????????# ###???????? | | ??????????????????#####+##????????? | | ??????????????????# #????????? | | ??????????????????# """ #????????? | | ??????????????????# "T" #?????##?? | | ??????????????????# ###### ### | | ??????????????????# # # | | ??????????#???????# # # | | ?????????# #######"### [[ # | | ?????????# * !#! [ # | | ?????????# %= %+[ # | | ?????????# = # """ # | | ?????????# ######### # """ # | | ?????????## ??##########+# """ # | | ??????????????# # # | | ??????????????+ """ ""####+##### | | ??????????????# """"" T"#????????? | | ??????????????# """"" ""#????????? | | ??????????????# """"" #????????? | | ??????????????+ """ #????????? | | ??????????? ??# #????????? | | ??????????# ?########+###????????? | +----------------------------------------------------+ Best States ------------- Heat Dissipation 28 Energy Generation 10 Energy Capacity 250 Matter Stores 300 Matter Capacity 300 Sight Range 16 Terrain Scan Density 10 ECM Strength 1 Power Shielding 33 Evasion (%) 55 Item Schematics ----------------- None Robot Schematics ------------------ None Fabricated ------------ Nothing Alien Tech Used ----------------- None Achievements -------------- None Challenges ------------ None Game ------ Seed ClaymoresAdvancedRegenerator Manual? 0 Play Time 00:19:15 Cumulative 13.2 hours Start 2025.03.07 @ 11:43:01 End 2025.03.27 @ 21:44:54 Sessions 6 Manual Loads 0 Difficulty Rogue Special Mode None Game No. 12 Rogue 11 Adventurer 1 Explorer 0 Win Type - Total 0 Types 0/0/0/0/0/0/0/0/0 Lore% 4 Gallery% 13 Achievement% 15 Wizard Run 0 Options --------- Layout 1 ASCII 0 Keyboard 1 Movement Vi Keybinds 0 Fullscreen 1 Font 18/X11Bold Map View 50x40 Zoom Use 0% Tactical HUD 1 Map Filters NONE Filters NONE Steam X RUN: a1872ba8-b14f-474a-877d-73d4b1e74209